[Event "82nd Italian Championship 2023"]
[Site "Brescia"]
[Date "2023.12.07"]
[Round "9.6"]
[White "Sonis, Francesco"]
[Black "Moroni, Luca Jr"]
[Result "0-1"]
[ECO "D85"]
[WhiteElo "2564"]
[BlackElo "2575"]
[Annotator "TA"]
[PlyCount "64"]
[EventDate "2023.11.28"]
[EventType "tourn"]
[EventCountry "ITA"]
[SourceTitle "playchess.com"]
[Source "ChessBase"]
[SourceQuality "1"]
[TimeControl "40/6000+30:20/3000+30:900+30"]

{[%evp 16,64,12,8,19,-3,-4,-10,-10,-83,-64,-91,-100,-110,-95,-125,-136,-231,-249,-241,-218,-328,-325,-554,-555,-618,-601,-454,-438,-421,-414,-747,-725,-538,-208,-670,-696,-978,-722,-2060,-1862,-1531,-1454,-29976,-29974,-29988,-29989,-29993,-1133,-995,-970]} 1. c4 {[%emt 0:00:02]} g6 {[%emt 0:01:58]} 2. d4 {[%emt 0:03:48]} Nf6 {[%emt 0:03:51]} 3. Nc3 {[%emt 0:01:01]} d5 {[%emt 0:00:19]} 4. cxd5 {[%emt 0:00:52]} Nxd5 {[%emt 0:00:05]} 5. e4 {[%emt 0:00:05]} Nxc3 {[%emt 0:00:04]} 6. bxc3 {[%emt 0:00:04]} Bg7 {[%emt 0:00:05]} 7. Be3 {[%emt 0:01:20]} c5 {[%emt 0:01:43]} 8. Qd2 {[%emt 0:00:06]} O-O {[%emt 0:00:57]} 9. Rc1 {[%emt 0:00:05]} (9. dxc5 Qa5 10. Rc1 Rd8 $17) 9... Nd7 {[%emt 0:01:44] D85: Exchange Grünfeld: Unusual White 7th moves and lines with 7 Nf3.} 10. h4 {[%emt 0:05:48]} ({Much weaker is} 10. dxc5 Qc7 11. Nf3 Nxc5 $17) 10... e5 {[%emt 0:01:32][%cal Be7e5,Be5e4][%mdl 32]} 11. d5 {[%emt 0:40:37]} f5 {[%emt 0:03:37] [#] Threatens to win with ...f4. The position is equal.} 12. f3 $146 {[%emt 0:05:39]} (12. d6 $11 {keeps the balance.}) ({Predecessor:} 12. Bg5 Nf6 13. c4 Nxe4 14. Bxd8 Nxd2 15. Be7 Rf7 16. Bxc5 Nxf1 17. Kxf1 b6 18. Ba3 {0-1 Khattar,T (2027)-Costello,A (2259) World op 48th 2020 (6)}) 12... fxe4 {[%emt 0:18:56]} 13. h5 {[%emt 0:00:04] [#]} gxh5 {[%emt 0:08:42]} 14. Nh3 {[%emt 0:06:04]} exf3 {[%emt 0:12:18]} 15. gxf3 {[%emt 0:07:09]} e4 {[%emt 0:01:43] ...Ne5 is the strong threat.} 16. f4 {[%emt 0:09:43] [#] Repels Ne5} (16. Ng5 $17 {keeps fighting.}) 16... b6 $1 $19 {[%emt 0:08:32]} 17. Ng5 {[%emt 0:06:18]} Nf6 {[%emt 0:02:52]} 18. d6 {[%emt 0:00:03]} (18. a4 $142) 18... Qe8 {[%emt 0:03:41]} 19. f5 $2 {[%emt 0:08:26]} (19. a4 {was called for.}) 19... Bxf5 {[%emt 0:02:01]} 20. Bc4+ {[%emt 0:01:04]} Kh8 {[%emt 0:00:08]} 21. O-O {[%emt 0:01:21]} Qg6 {[%emt 0:11:16]} 22. Rxf5 {[%emt 0:03:49]} Qxf5 {[%emt 0:00:26]} 23. Be6 {[%emt 0:00:05]} (23. Rf1 $142 Qg4+ 24. Qg2) 23... Qg6 {[%emt 0:01:03]} 24. Rf1 {[%emt 0:00:07]} Qe8 $2 {[%emt 0:07:46]} (24... Bh6 {...Bxg5 would be deadly.} 25. Rf5 Rad8) 25. Bf5 $2 {[%emt 0:03:31]} (25. d7 Qe7 26. Bf4 Nxd7 27. Qxd7 Qxd7 28. Bxd7) 25... Qe5 {[%emt 0:01:49]} 26. Kg2 {[%emt 0:04:58]} Nd5 {[%emt 0:04:10]} 27. Be6 {[%emt 0:00:39]} Nxe3+ {[%emt 0:01:13]} (27... Nxc3 $2 28. d7 Qc7 29. Rf7 $18) 28. Qxe3 {[%emt 0:00:05]} Bh6 {[%emt 0:01:04] ( -> ...Rxf1)} (28... Qxc3 $2 {too greedy.} 29. Rxf8+ Rxf8 30. Nf7+ Rxf7 31. Qxc3 Bxc3 32. Bxf7 $19) 29. Rxf8+ {[%emt 0:01:12]} Rxf8 {[%emt 0:00:06]} 30. Nf7+ {[%emt 0:00:03] [#]} Rxf7 $1 {[%emt 0:00:05]} 31. Qxh6 {[%emt 0:00:04]} (31. d7 Rxd7) 31... Qg7+ {[%emt 0:00:54]} (31... Rf3 $142 32. Qf8+ Rxf8 33. d7 Qg5+ 34. Kh2 Rf2+ 35. Kh3 Qg2+ 36. Kh4 Rf4+ 37. Kxh5 Qg6#) 32. Qxg7+ {[%emt 0:00:06]} Kxg7 {[%emt 0:00:06] White got outplayed after the opening.   Weighted Error Value: White=1.41/Black=0.46} 0-1

[Event "82nd Italian Championship 2023"]
[Site "Brescia"]
[Date "2023.12.08"]
[Round "10.1"]
[White "Santagati, Alessandro"]
[Black "Moroni, Luca Jr"]
[Result "0-1"]
[ECO "E61"]
[WhiteElo "2245"]
[BlackElo "2575"]
[Annotator "TA"]
[PlyCount "84"]
[EventDate "2023.11.28"]
[EventType "tourn"]
[EventCountry "ITA"]
[SourceTitle "playchess.com"]
[Source "ChessBase"]
[SourceQuality "1"]
[TimeControl "40/6000+30:20/3000+30:900+30"]

{[%evp 17,84,0,33,9,7,0,8,0,0,0,36,24,30,-11,0,-26,-18,-40,-17,-16,-18,-18,-23,-28,-21,-38,-32,-37,-43,-53,-61,-71,-59,-109,-107,-104,-106,-100,-97,-111,-104,-106,-90,-122,-128,-127,-115,-129,-118,-122,-124,-121,-125,-124,-122,-110,-110,-114,-111,-369,-139,-133,-133,-247,-243,-1067,-641,-29981,-29982]} 1. d4 {[%emt 0:05:07]} Nf6 {[%emt 0:02:26]} 2. Bf4 {[%emt 0:00:41]} b6 {[%emt 0:01:56]} 3. Nf3 {[%emt 0:00:31]} Bb7 {[%emt 0:00:17]} 4. e3 {[%emt 0:00:21]} d6 {[%emt 0:01:33]} 5. h3 {[%emt 0:05:08]} g6 {[%emt 0:01:13]} 6. c4 {[%emt 0:04:16]} Bg7 {[%emt 0:04:00]} 7. Nc3 {[%emt 0:00:27]} Nbd7 {[%emt 0:01:26]} 8. Be2 {[%emt 0:02:30]} O-O {[%emt 0:02:35]} 9. O-O {[%emt 0:00:15]} Re8 {[%emt 0:00:21]} 10. Rc1 {[%emt 0:03:51] E61: King's Indian: Early deviations for White, including Smyslov System.} Ne4 $5 {[%emt 0:09:27][%mdl 4] A promising side line.} 11. Nxe4 {[%emt 0:07:34]} Bxe4 {[%emt 0:05:16]} 12. Nd2 {[%emt 0:00:11] The position is equal.} Bb7 {[%emt 0:00:42]} 13. Bf3 {[%emt 0:02:08] [#]} c6 $146 {[%emt 0:15:53]} ({Predecessor:} 13... Bxf3 14. Nxf3 e5 15. Bg3 e4 16. Nd2 a5 17. Qa4 Nf6 18. Rfd1 Qd7 19. Qc2 Qe6 {½-½ Nassr,A (2244)-Tairi,A (1737) ALG-chT Ain Oulmane 2019 (1.1)}) 14. Bh2 {[%emt 0:05:14]} e5 {[%emt 0:13:47]} 15. Nb3 {[%emt 0:01:30]} a5 {[%emt 0:04:16]} 16. a4 {[%emt 0:01:06]} e4 {[%emt 0:07:17]} 17. Be2 {[%emt 0:00:40]} Qe7 {[%emt 0:00:03]} 18. c5 {[%emt 0:07:12]} bxc5 {[%emt 0:01:39]} 19. dxc5 {[%emt 0:00:43]} d5 {[%emt 0:00:07]} ({Resist} 19... Bxb2 20. Bxd6 Qf6 21. Rb1 $16) 20. Qd2 {[%emt 0:10:14]} Qd8 {[%emt 0:01:05]} 21. Nd4 {[%emt 0:08:50][%cal Od4b5]} Be5 {[%emt 0:02:09]} 22. Bxe5 {[%emt 0:02:55]} Nxe5 {[%emt 0:00:19]} 23. b4 {[%emt 0:03:17]} axb4 {[%emt 0:01:03]} 24. Qxb4 {[%emt 0:00:08]} Ba6 {[%emt 0:00:34]} 25. Rb1 {[%emt 0:04:28]} (25. Bxa6 $15 Rxa6 26. Ra1) 25... Bxe2 $17 {[%emt 0:02:41]} 26. Nxe2 {[%emt 0:00:07]} Qa5 {[%emt 0:04:55] Black is more active.} 27. Nd4 {[%emt 0:01:49]} Qxa4 {[%emt 0:03:23]} 28. Qb7 {[%emt 0:03:01][%cal Ob1a1]} Ra7 {[%emt 0:02:11]} 29. Qb6 {[%emt 0:02:12][%cal Ob1a1]} Qa6 {[%emt 0:02:32] Prevents Ra1} 30. Rfc1 {[%emt 0:03:55]} Rc8 {[%emt 0:02:19]} 31. Rc2 {[%emt 0:04:32]} Nc4 {[%emt 0:03:53]} 32. Qb4 {[%emt 0:05:34]} Qa4 {[%emt 0:00:58]} 33. Qxa4 {[%emt 0:02:30]} Rxa4 {[%emt 0:00:02]} 34. Rb7 {[%emt 0:00:54]} h5 {[%emt 0:06:51]} 35. h4 {[%emt 0:00:57]} Kf8 {[%emt 0:01:14]} 36. Kh2 {[%emt 0:01:46]} Ne5 {[%emt 0:00:37]} 37. Kg3 {[%emt 0:03:50]} Kg7 {[%emt 0:01:06]} 38. f4 $2 {[%emt 0:06:11][%mdl 8192] [#] This move loses the game for White.} (38. Rc3 $17) 38... exf3 $2 {[%emt 0:01:21]} (38... Ng4 $19 {has better winning chances.} 39. Re2 Nxe3 40. Ne6+ Kf6) 39. gxf3 {[%emt 0:00:22]} Ra3 {[%emt 0:01:07]} 40. Kf4 {[%emt 0:02:22]} (40. Rb3 $17 {was necessary.} Ra4 41. Rb7) 40... Re8 $19 {[%emt 0:03:54]} 41. Kg5 $2 {[%emt 0:10:21]} (41. Re2) 41... Rxe3 {[%emt 0:04:25]} 42. Rf2 {[%emt 0:03:22]} Nd3 {[%emt 0:06:36][%csl LRc5,LRf2] Weighted Error Value: White=0.65/Black=0.29 (precise)} 0-1

[Event "82nd Italian Championship 2023"]
[Site "Brescia"]
[Date "2023.12.08"]
[Round "10.2"]
[White "Carnicelli, Valerio"]
[Black "Sonis, Francesco"]
[Result "1/2-1/2"]
[ECO "C47"]
[WhiteElo "2423"]
[BlackElo "2564"]
[Annotator "TA"]
[PlyCount "114"]
[EventDate "2023.11.28"]
[EventType "tourn"]
[EventCountry "ITA"]
[SourceTitle "playchess.com"]
[Source "ChessBase"]
[SourceQuality "1"]
[TimeControl "40/6000+30:20/3000+30:900+30"]

{[%evp 11,114,24,37,32,31,29,28,0,41,41,66,30,35,35,71,35,27,29,56,42,66,58,65,47,55,52,76,48,45,4,63,11,39,39,35,35,35,29,30,35,41,37,39,39,41,39,49,54,66,49,97,93,97,90,85,30,30,33,56,0,0,0,0,0,3,3,3,3,4,0,0,0,8,8,8,8,18,0,0,0,0,0,0,0,0,0,0,0,0,0,0,0,0,0,0,0,0,0,0,0,0,0,0,0,0]} 1. e4 {[%emt 0:00:03]} e5 {[%emt 0:00:09]} 2. Nf3 {[%emt 0:00:03]} Nc6 {[%emt 0:00:03]} 3. Nc3 {[%emt 0:00:03]} Nf6 {[%emt 0:01:36]} 4. d4 {[%emt 0:00:06]} Bb4 {[%emt 0:00:04]} 5. Nxe5 {[%emt 0:18:26]} Bxc3+ {[%emt 0:01:21]} 6. bxc3 {[%emt 0:00:05]} Qe7 $1 {[%emt 0:00:04]} 7. Nxc6 {[%emt 0:01:52] C47: Scotch Four Knights and Four Knights with 4 g3.} Qxe4+ {[%emt 0:00:08]} 8. Qe2 {[%emt 0:02:36] And now Nb4 would win.} dxc6 {[%emt 0:00:52]} 9. f3 {[%emt 0:02:36][%mdl 64] [#] Pin. White has an edge. 9.f3 was played by the boomers.} Qe6 {[%emt 0:03:35] [#]} 10. Bg5 $146 {[%emt 0:01:42][%cal Bc1g5,Bg5h4,Bh4g3][%mdl 32]} ({Predecessor:} 10. Kf2 O-O 11. Qxe6 Bxe6 12. Bd3 Nd5 13. Bd2 Rfd8 14. Rab1 b5 15. a3 Nb6 16. Rhe1 {½-½ Jankunas,T (1946)-Malinin,Y (2344) Plunge op 31st 2011 (5)}) 10... Nd5 {[%emt 0:00:36]} 11. Kd2 {[%emt 0:02:33]} Qxe2+ {[%emt 0:00:21]} 12. Bxe2 {[%emt 0:00:04]} Be6 {[%emt 0:06:58]} 13. Rhe1 {[%emt 0:06:19]} (13. c4 $5 {[%cal Rc4d5]} Nb6 14. Rhe1 $14) 13... f6 {[%emt 0:13:54]} 14. Bh4 {[%emt 0:00:32]} Kf7 {[%emt 0:01:40]} 15. Bg3 {[%emt 0:01:47]} Rhd8 {[%emt 0:06:12][%cal Oc6c5]} 16. Rab1 {[%emt 0:03:50]} b6 {[%emt 0:08:46]} 17. Bd3 {[%emt 0:06:27]} (17. c4 $5 {[%cal Rc4d5]} Ne7 18. Kc3 $14 (18. Bxc7 Rxd4+ 19. Kc3 c5 $11)) 17... g6 {[%emt 0:08:43]} 18. Re2 {[%emt 0:02:12] Strongly threatening c4.} b5 {[%emt 0:06:47]} 19. Rbe1 {[%emt 0:02:57]} (19. a4 $5 {[%cal Ra4b5]}) 19... Re8 {[%emt 0:01:05]} 20. a3 {[%emt 0:02:33]} Rad8 {[%emt 0:05:14]} ({Black should play} 20... Nb6 $11) 21. h4 {[%emt 0:01:48] White is more active.} (21. Re4 $14) 21... Bf5 {[%emt 0:12:03]} 22. Rxe8 {[%emt 0:10:12]} Rxe8 {[%emt 0:00:07]} 23. Rxe8 {[%emt 0:00:07]} Kxe8 {[%emt 0:00:04]} 24. c4 {[%emt 0:00:12]} Bxd3 {[%emt 0:04:51]} 25. cxd3 {[%emt 0:03:25]} bxc4 {[%emt 0:03:10]} 26. dxc4 $11 {[%emt 0:05:20][%mdl 4096] Endgame KB-KN} Nb6 {[%emt 0:00:04]} 27. Kc3 {[%emt 0:01:23]} ({Don't play} 27. Bxc7 Nxc4+ 28. Kd3 Nxa3 $17) 27... Kd7 {[%emt 0:00:04]} 28. Kb4 {[%emt 0:02:53]} Kc8 {[%emt 0:00:06]} 29. Bf4 {[%emt 0:10:11]} Kb7 {[%emt 0:00:10]} 30. g4 {[%emt 0:00:28]} Nd7 {[%emt 0:00:14] [#]} (30... f5 $14) 31. c5 $1 $16 {[%emt 0:02:10]} Kc8 {[%emt 0:07:23]} 32. Kc4 {[%emt 0:05:00]} Kd8 {[%emt 0:04:00]} 33. d5 {[%emt 0:07:39]} (33. Kd3 $16) 33... Nb8 $1 $11 {[%emt 0:00:43]} 34. d6 {[%emt 0:05:03]} cxd6 {[%emt 0:00:57]} 35. Bxd6 {[%emt 0:00:12]} (35. cxd6 $14 Nd7 36. a4) 35... Nd7 {[%emt 0:00:16] The position is equal.} 36. Kd4 {[%emt 0:01:23]} Ke8 {[%emt 0:01:45]} 37. Kc4 {[%emt 0:01:00]} Kd8 {[%emt 0:00:01]} 38. Kb4 {[%emt 0:01:43] aiming for Ka5.} Kc8 $1 {[%emt 0:00:22]} 39. Kc3 {[%emt 0:00:25]} Kd8 {[%emt 0:01:30]} 40. Kd4 {[%emt 0:02:08]} Ke8 $1 {[%emt 0:00:23]} 41. Ke4 {[%emt 0:22:06]} Kd8 {[%emt 0:07:41]} 42. f4 {[%emt 0:02:30]} Ke8 {[%emt 0:00:19]} 43. f5 {[%emt 0:02:31]} g5 {[%emt 0:00:18]} 44. hxg5 {[%emt 0:09:32]} fxg5 {[%emt 0:00:01]} 45. f6 {[%emt 0:00:16]} Nxf6+ {[%emt 0:01:00]} 46. Kf5 {[%emt 0:00:01]} Kf7 {[%emt 0:00:44]} 47. Kxg5 {[%emt 0:00:46]} Ne4+ {[%emt 0:01:23]} 48. Kh6 {[%emt 0:01:17]} Kg8 {[%emt 0:00:05]} 49. g5 {[%emt 0:04:22]} a5 {[%emt 0:03:07]} 50. g6 {[%emt 0:03:58]} hxg6 {[%emt 0:00:05]} 51. Kxg6 {[%emt 0:00:03]} Nxd6 {[%emt 0:00:04]} 52. cxd6 {[%emt 0:00:04] KPP-KPP} Kf8 {[%emt 0:00:03]} 53. Kf6 {[%emt 0:00:09] Hoping for d7.} Ke8 {[%emt 0:00:03]} 54. Ke6 {[%emt 0:00:02]} a4 {[%emt 0:00:25]} 55. d7+ {[%emt 0:00:11]} Kd8 {[%emt 0:00:03]} 56. Kd6 {[%emt 0:00:02]} c5 {[%emt 0:00:01][%mdl 64] Deflection} 57. Kxc5 {[%emt 0:00:04] Threatens to win with Kc6.} Kxd7 {[%emt 0:00:03] Weighted Error Value: White=0.11 (very precise) /Black=0.09 (flawless)} 1/2-1/2

[Event "82nd Italian Championship 2023"]
[Site "Brescia"]
[Date "2023.12.08"]
[Round "10.4"]
[White "David, Alberto"]
[Black "Basso, Pier Luigi"]
[Result "1/2-1/2"]
[ECO "A12"]
[WhiteElo "2532"]
[BlackElo "2483"]
[Annotator "TA"]
[PlyCount "45"]
[EventDate "2023.11.28"]
[EventType "tourn"]
[EventCountry "ITA"]
[SourceTitle "playchess.com"]
[Source "ChessBase"]
[SourceQuality "1"]
[TimeControl "40/6000+30:20/3000+30:900+30"]

{[%evp 19,45,0,-2,-22,-24,-23,-10,-16,-25,-25,0,0,0,0,0,0,0,-7,-14,-16,0,-14,0,-1,-5,-4,0,0]} 1. Nf3 {[%emt 0:00:07]} d5 {[%emt 0:00:09]} 2. g3 {[%emt 0:00:06]} c6 {[%emt 0:00:20]} 3. Bg2 {[%emt 0:00:12]} Bf5 {[%emt 0:00:09]} 4. b3 {[%emt 0:08:34]} h6 {[%emt 0:00:33]} 5. Bb2 {[%emt 0:00:15]} e6 {[%emt 0:00:08]} 6. d3 {[%emt 0:00:27]} Nf6 {[%emt 0:00:18]} 7. Nbd2 {[%emt 0:00:21]} Bh7 {[%emt 0:00:36]} 8. O-O {[%emt 0:03:15]} Be7 {[%emt 0:00:20]} 9. c4 {[%emt 0:05:25]} O-O {[%emt 0:00:21]} 10. a3 {[%emt 0:02:40]} a5 {[%emt 0:05:53]} 11. Ra2 $1 {[%emt 0:01:36][%mdl 4] is recently more successful than 11.Qc2. A12: English Opening: 1...c6 with b3 by White.} Qb6 {[%emt 0:06:38]} 12. Qa1 {[%emt 0:08:20]} Nbd7 {[%emt 0:01:51]} 13. Bh3 {[%emt 0:12:36]} Rfd8 {[%emt 0:02:43] [#]} 14. cxd5 $146 {[%emt 0:06:31]} ({Predecessor:} 14. Bc3 Qa6 15. Rc1 Ne8 16. Qb2 b5 17. cxd5 cxd5 18. Qa1 Rdc8 19. Rac2 Rc7 20. Bb2 Rxc2 21. Rxc2 {½-½ Sergeev,V (2489)-Perun,S (2344) Sakharov Memorial 2nd 2003 (6)}) 14... cxd5 {[%emt 0:02:26]} 15. Bd4 {[%emt 0:12:47] The position is equal.} Qa6 {[%emt 0:05:49]} 16. Rc1 {[%emt 0:01:18]} Rac8 {[%emt 0:00:47]} 17. Rac2 {[%emt 0:03:30]} Rc6 {[%emt 0:04:06]} 18. Rc3 {[%emt 0:08:45]} Rdc8 {[%emt 0:01:39]} 19. R1c2 {[%emt 0:03:09]} Rxc3 {[%emt 0:11:33]} 20. Rxc3 {[%emt 0:00:32]} Rxc3 {[%emt 0:00:11]} 21. Bxc3 {[%emt 0:03:23]} Qb6 {[%emt 0:03:37]} 22. Qb2 {[%emt 0:02:12]} Bc5 {[%emt 0:03:15]} 23. Bd4 {[%emt 0:01:32] Not much happened in this game.   Weighted Error Value: White=0.03 (flawless) /Black=0.03 (flawless)} 1/2-1/2

[Event "82nd Italian Championship 2023"]
[Site "Brescia"]
[Date "2023.12.08"]
[Round "10.5"]
[White "Dvirnyy, Danyyil"]
[Black "Lumachi, Gabriele"]
[Result "1/2-1/2"]
[ECO "B08"]
[WhiteElo "2495"]
[BlackElo "2395"]
[Annotator "RC"]
[PlyCount "52"]
[EventDate "2023.11.28"]
[EventType "tourn"]
[EventCountry "ITA"]
[SourceTitle "playchess.com"]
[Source "ChessBase"]
[SourceQuality "1"]
[TimeControl "40/6000+30:20/3000+30:900+30"]

1. e4 {[%emt 0:00:02]} g6 {[%emt 0:00:17]} 2. d4 {[%emt 0:00:23]} d6 {[%emt 0:00:16]} 3. Nc3 {[%emt 0:03:38]} c6 {[%emt 0:00:07]} 4. Nf3 {[%emt 0:01:52]} Nf6 {[%emt 0:00:30]} 5. Be2 {[%emt 0:00:29]} Bg7 {[%emt 0:00:21]} 6. O-O {[%emt 0:00:23]} O-O {[%emt 0:00:09]} 7. h3 {[%emt 0:00:18]} Qc7 {[%emt 0:02:11]} 8. Be3 {[%emt 0:07:56]} Nbd7 {[%emt 0:00:34]} 9. a4 {[%emt 0:00:37]} e5 {[%emt 0:05:54]} 10. dxe5 {[%emt 0:00:51]} dxe5 {[%emt 0:03:17]} 11. a5 {[%emt 0:03:14]} Rd8 {[%emt 0:00:17]} 12. Qb1 {[%emt 0:01:01]} Nf8 {[%emt 0:00:55]} 13. Qa2 {[%emt 0:14:51]} Be6 {[%emt 0:00:14]} 14. Qa4 {[%emt 0:00:29]} h6 {[%emt 0:02:23]} 15. Rfd1 {[%emt 0:02:55]} Rxd1+ {[%emt 0:28:59]} 16. Rxd1 {[%emt 0:00:20]} Nh5 {[%emt 0:00:07]} 17. Nd2 {[%emt 0:03:05]} Nf4 {[%emt 0:03:00]} 18. Bf1 {[%emt 0:00:09]} Nd7 {[%emt 0:04:52]} 19. Bc4 {[%emt 0:10:37]} Bf8 {[%emt 0:27:19]} 20. Bxf4 {[%emt 0:07:28]} Nc5 {[%emt 0:06:14]} 21. Bxe5 {[%emt 0:03:07]} Qxe5 {[%emt 0:00:37]} 22. Qa1 {[%emt 0:00:10]} Bxc4 {[%emt 0:01:39]} 23. Nxc4 {[%emt 0:00:07]} Qe6 {[%emt 0:00:03]} 24. Rd4 {[%emt 0:06:02]} Bg7 {[%emt 0:01:49]} 25. e5 {[%emt 0:00:06]} Bxe5 {[%emt 0:00:27]} 26. Nxe5 {[%emt 0:00:08]} Qxe5 {[%emt 0:00:15]} 1/2-1/2

[Event "82nd Italian Championship 2023"]
[Site "Brescia"]
[Date "2023.12.08"]
[Round "10.6"]
[White "Lodici, Lorenzo"]
[Black "Brunello, Sabino"]
[Result "1/2-1/2"]
[ECO "D23"]
[WhiteElo "2550"]
[BlackElo "2492"]
[Annotator "TA"]
[PlyCount "44"]
[EventDate "2023.11.28"]
[EventType "tourn"]
[EventCountry "ITA"]
[SourceTitle "playchess.com"]
[Source "ChessBase"]
[SourceQuality "1"]
[TimeControl "40/6000+30:20/3000+30:900+30"]

{[%evp 13,44,-33,-26,-47,-41,-56,-52,-65,-60,-112,-109,-145,-22,-31,-38,-29,-20,-27,-23,-45,28,9,14,-18,0,-22,0,0,0,-64,12,4,10]} 1. d4 {[%emt 0:03:16]} Nf6 {[%emt 0:00:54]} 2. c4 {[%emt 0:01:22]} e6 {[%emt 0:00:10]} 3. Nc3 {[%emt 0:01:41]} d5 {[%emt 0:00:07]} 4. Nf3 {[%emt 0:00:11]} Nbd7 {[%emt 0:01:43]} 5. Qd3 {[%emt 0:06:23]} dxc4 {[%emt 0:06:04]} 6. Qxc4 {[%emt 0:00:13]} a6 {[%emt 0:00:06]} 7. Bf4 {[%emt 0:20:23]} c5 {[%emt 0:03:51]} 8. dxc5 {[%emt 0:00:35] D23: Queen's Gambit Accepted: 3 Nf3 Nf6 sidelines.} Bxc5 {[%emt 0:01:26]} 9. b4 {[%emt 0:00:10]} b5 {[%emt 0:01:31]} 10. Qb3 {[%emt 0:00:06] Black is slightly better.} Be7 {[%emt 0:01:58]} 11. e4 {[%emt 0:01:19]} (11. e3 $15) 11... Bb7 $17 {[%emt 0:23:03]} 12. Bd3 {[%emt 0:03:49] [#]} O-O {[%emt 0:12:57]} ({Better is} 12... a5 $1 $17 {[%cal Ra5b4]} 13. bxa5 (13. Nxb5 $2 {perishes.} Bxb4+ 14. Ke2 Nc5 $19) (13. Bxb5 axb4 14. e5 Ra3 $17 {[%mdl 64] Skewer}) 13... b4) 13. O-O $11 {[%emt 0:00:56] [#]} Nh5 $146 {[%emt 0:00:20]} (13... a5 {with more complications.} 14. a3 axb4 15. axb4 Nc5) ({Predecessor:} 13... a5 14. Rad1 axb4 15. Nxb5 Nc5 16. Qc4 Qa5 17. Bc7 Qa6 18. e5 Bd5 19. Qxb4 Nxd3 20. Qxe7 Bxf3 21. gxf3 {0-1 Reyes Zavaleta,C (1858)-Zhong,R (1858) Pan American-ch School U13 12th 2023 (7)}) 14. Be3 {[%emt 0:08:19]} Qb8 {[%emt 0:00:06]} 15. Rad1 {[%emt 0:06:48][%cal Od3b5]} Rd8 {[%emt 0:00:18]} 16. Nd4 {[%emt 0:07:54]} Ne5 {[%emt 0:15:40]} ({Black should play} 16... Nhf6 $15 17. f3 Bd6) 17. Be2 {[%emt 0:00:40]} Nf6 {[%emt 0:00:06] [#] And now ...Neg4 would win.} 18. f3 {[%emt 0:09:07] Dodges Neg4} (18. Nxe6 $5 Rxd1 19. Rxd1 fxe6 20. Qxe6+ Kf8 21. f4 $11) 18... Nc6 {[%emt 0:09:20]} (18... Ng6 $5 {[%cal Re7d6]}) 19. Nc2 {[%emt 0:00:22]} Rxd1 {[%emt 0:09:17]} (19... Bd6 $5 {[%cal Rd6h2]} 20. f4 e5 $11) 20. Rxd1 {[%emt 0:00:36]} Bd6 {[%emt 0:00:41]} 21. g3 {[%emt 0:01:47]} (21. h3 $11) 21... Qf8 {[%emt 0:02:45]} (21... Bxg3 $15 22. hxg3 Qxg3+ 23. Kf1 Ne5) 22. a3 {[%emt 0:04:07]} Rc8 {[%emt 0:02:02] Weighted Error Value: White=0.22 (precise) /Black=0.28 (precise)} 1/2-1/2

[Event "82nd Italian Championship 2023"]
[Site "Brescia"]
[Date "2023.12.09"]
[Round "11.1"]
[White "Brunello, Sabino"]
[Black "Santagati, Alessandro"]
[Result "1-0"]
[ECO "A13"]
[WhiteElo "2492"]
[BlackElo "2245"]
[Annotator "RC"]
[PlyCount "93"]
[EventDate "2023.11.28"]
[EventType "tourn"]
[EventCountry "ITA"]
[SourceTitle "playchess.com"]
[Source "ChessBase"]
[SourceQuality "1"]
[TimeControl "40/6000+30:20/3000+30:900+30"]

1. c4 {[%emt 0:00:03]} e6 {[%emt 0:10:39]} 2. g3 {[%emt 0:00:13]} d5 {[%emt 0:00:06]} 3. Bg2 {[%emt 0:00:03]} dxc4 {[%emt 0:00:26]} 4. Qa4+ {[%emt 0:00:17]} Nd7 {[%emt 0:00:19]} 5. Qxc4 {[%emt 0:00:17]} a6 {[%emt 0:00:07]} 6. Qc2 {[%emt 0:00:55]} Ngf6 {[%emt 0:00:28]} 7. Nf3 {[%emt 0:00:23]} c5 {[%emt 0:00:34]} 8. O-O {[%emt 0:09:08]} b5 {[%emt 0:02:02]} 9. a4 {[%emt 0:03:41]} Bb7 {[%emt 0:00:58]} 10. Nc3 {[%emt 0:00:08]} Qb6 {[%emt 0:02:48]} 11. d3 {[%emt 0:01:19]} Be7 {[%emt 0:00:34]} 12. e4 {[%emt 0:00:31]} O-O {[%emt 0:09:56]} 13. Be3 {[%emt 0:00:35]} Rac8 {[%emt 0:09:00]} 14. h3 {[%emt 0:00:40]} Nb8 {[%emt 0:09:28]} 15. axb5 {[%emt 0:25:21]} axb5 {[%emt 0:01:08]} 16. Qb3 {[%emt 0:00:06]} Rfd8 {[%emt 0:15:24]} 17. Rfd1 {[%emt 0:02:03]} b4 {[%emt 0:06:27]} 18. Na4 {[%emt 0:08:43]} Qb5 {[%emt 0:04:24]} 19. Ne5 {[%emt 0:02:07]} Nc6 {[%emt 0:10:17]} 20. Nc3 {[%emt 0:11:50]} Na5 {[%emt 0:01:12]} 21. Nxb5 {[%emt 0:09:25]} Nxb3 {[%emt 0:00:20]} 22. Ra7 {[%emt 0:00:06]} Rb8 {[%emt 0:01:53]} 23. Bf3 {[%emt 0:00:47]} Ne8 {[%emt 0:09:06]} 24. Nc4 {[%emt 0:10:54]} Bf6 {[%emt 0:02:59]} 25. Bf4 {[%emt 0:04:11]} e5 {[%emt 0:03:47]} 26. Bxe5 {[%emt 0:04:07]} Bxe5 {[%emt 0:00:36]} 27. Nxe5 {[%emt 0:00:07]} f6 {[%emt 0:00:33]} 28. Bg4 {[%emt 0:01:00]} fxe5 {[%emt 0:02:16]} 29. Be6+ {[%emt 0:00:06]} Kf8 {[%emt 0:03:28]} 30. Bxb3 {[%emt 0:00:07]} Rd7 {[%emt 0:00:22]} 31. Ra5 {[%emt 0:07:06]} Ke7 {[%emt 0:00:05]} 32. Bc4 {[%emt 0:01:27]} Bxe4 {[%emt 0:03:57]} 33. Re1 {[%emt 0:03:44]} Bxd3 {[%emt 0:00:04]} 34. Bxd3 {[%emt 0:00:26]} Rxd3 {[%emt 0:00:10]} 35. Rxe5+ {[%emt 0:00:06]} Kf8 {[%emt 0:01:05]} 36. Rxc5 {[%emt 0:00:20]} Rd2 {[%emt 0:00:17]} 37. Ra7 {[%emt 0:04:36]} b3 {[%emt 0:00:22]} 38. Nc7 {[%emt 0:01:48]} Rxb2 {[%emt 0:00:47]} 39. Rf5+ {[%emt 0:00:39]} Kg8 {[%emt 0:00:31]} 40. Ne6 {[%emt 0:00:29]} h6 {[%emt 0:00:41]} 41. Rf8+ {[%emt 0:50:27]} Kh7 {[%emt 0:50:09]} 42. Nxg7 {[%emt 0:00:22]} Ra2 {[%emt 0:00:00]} 43. Re7 {[%emt 0:00:00]} Kg6 {[%emt 0:00:00]} 44. Nxe8 {[%emt 0:00:00]} Ra1+ {[%emt 0:00:00]} 45. Kg2 {[%emt 0:00:00]} Rxe8 {[%emt 0:00:00]} 46. Rfxe8 {[%emt 0:00:00]} b2 {[%emt 0:00:00]} 47. Re6+ {[%emt 0:00:00]} 1-0